fUST/lending_fUST_20240906
["ID","MTS","AMOUNT","RATE_DAILY","PERIOD"]
[337395339,1725637848691,-500.0,0.00019726,2]
[337395340,1725637848703,-515.46927583,0.00019726,2]
[337395341,1725637848713,-500.0,0.00019726,2]
[337395342,1725637848723,-500.0,0.00019726,2]
[337395343,1725637848733,-500.0,0.00019726,2]
[337395344,1725637848743,-500.0,0.00019726,2]
[337395345,1725637848753,-500.0,0.00019726,2]
[337395346,1725637848763,-500.0,0.00019726,2]
[337395347,1725637848773,-535.98,0.00019726,2]
[337395348,1725637848783,-500.0,0.00019726,2]
[337395349,1725637848793,-500.0,0.00019726,2]
[337395350,1725637848802,-500.0,0.00019726,2]
[337395351,1725637848813,-500.0,0.00019726,2]
[337395352,1725637848823,-500.0,0.00019726,2]
[337395353,1725637848834,-500.0,0.00019726,2]
[337395354,1725637848845,-527.28,0.00019726,2]
[337395355,1725637848855,-500.0,0.00019726,2]
[337395356,1725637848866,-500.0,0.00019726,2]
[337395357,1725637848877,-500.0,0.00019726,2]
[337395358,1725637848887,-500.0,0.00019726,2]
[337395359,1725637848897,-552.05,0.00019726,2]
[337395360,1725637848907,-500.0,0.00019726,2]
[337395361,1725637848917,-500.0,0.00019726,2]
[337395362,1725637848928,-500.0,0.00019726,2]
[337395363,1725637848938,-383.08,0.00019726,2]
[337395364,1725637848949,-500.0,0.00019726,2]
[337395365,1725637848959,-500.0,0.00019726,2]
[337395366,1725637848969,-500.0,0.00019726,2]
[337395367,1725637848980,-504.32,0.00019726,2]
[337395368,1725637848991,-938.12,0.00019726,2]
[337395369,1725637849000,-500.0,0.00019726,2]
[337395370,1725637849010,-500.0,0.00019726,2]
[337395371,1725637849020,-673.95,0.00019726,2]
[337395372,1725637849031,-500.0,0.00019726,2]
[337395373,1725637849040,-500.0,0.00019726,2]
[337395374,1725637849050,-500.0,0.00019726,2]
[337395375,1725637849060,-500.0,0.00019726,2]
[337395376,1725637849071,-500.0,0.00019726,2]
[337395377,1725637849081,-683.27,0.00019726,2]
[337395378,1725637849092,-825.03,0.00019726,2]
[337395379,1725637849102,-500.0,0.00019726,2]
[337395380,1725637849113,-500.0,0.00019726,2]
[337395381,1725637849123,-425.91705448,0.00019726,2]
[337395382,1725637849133,-500.0,0.00019726,2]
[337395383,1725637849143,-500.0,0.00019726,2]
[337395384,1725637849153,-500.0,0.00019726,2]
[337395385,1725637849163,-500.0,0.00019726,2]
[337395386,1725637849174,-500.0,0.00019726,2]
[337395387,1725637849184,-506.97082723,0.00019726,2]
[337395388,1725637849194,-500.0,0.00019726,2]
[337395389,1725637849204,-500.0,0.00019726,2]
[337395390,1725637849214,-500.0,0.00019726,2]
[337395391,1725637849224,-500.0,0.00019726,2]
[337395392,1725637849234,-500.0,0.00019726,2]
[337395393,1725637849244,-500.0,0.00019726,2]
[337395394,1725637849254,-500.0,0.00019726,2]
[337395395,1725637849265,-424.47290395,0.00019726,2]
[337395396,1725637849275,-549.8286483,0.00019726,2]
[337395397,1725637849285,-500.0,0.00019726,2]
[337395398,1725637849295,-500.0,0.00019726,2]
[337395399,1725637849304,-738.46,0.00019726,2]
[337395400,1725637849314,-500.0,0.00019726,2]
[337395401,1725637849324,-500.0,0.00019726,2]
[337395402,1725637849334,-27892.12,0.00019726,2]
[337395403,1725637849347,-500.0,0.00019726,2]
[337395404,1725637849359,-561.56,0.00019726,2]
[337395405,1725637849370,-500.0,0.00019726,2]
[337395406,1725637849380,-3589.64,0.00019726,2]
[337395407,1725637849391,-500.0,0.00019726,2]
[337395408,1725637849400,-500.0,0.00019726,2]
[337395409,1725637849411,-500.0,0.00019726,2]
[337395410,1725637849423,-500.0,0.00019726,2]
[337395411,1725637849434,-12189.28,0.00019726,2]
[337395412,1725637849443,-500.0,0.00019726,2]
[337395413,1725637849463,-500.0,0.00019726,2]
[337395414,1725637849474,-500.0,0.00019726,2]
[337395415,1725637849483,-866.56,0.00019726,2]
[337395416,1725637849493,-500.0,0.00019726,2]
[337395417,1725637849503,-500.0,0.00019726,2]
[337395418,1725637849513,-500.0,0.00019726,2]
[337395419,1725637849523,-551.9,0.00019726,2]
[337395420,1725637849533,-500.0,0.00019726,2]
[337395421,1725637849543,-1019.03,0.00019726,2]
[337395422,1725637849554,-500.0,0.00019726,2]
[337395423,1725637849565,-848.14,0.00019726,2]
[337395424,1725637849576,-500.0,0.00019726,2]
[337395425,1725637849585,-878.37,0.00019726,2]
[337395426,1725637849596,-1588.89,0.00019726,2]
[337395427,1725637849608,-1086.26,0.00019726,2]
[337395428,1725637849618,-500.0,0.00019726,2]
[337395429,1725637849629,-500.0,0.00019726,2]
[337395430,1725637849679,-500.0,0.00019726,2]
[337395431,1725637849690,-500.0,0.00019726,2]
[337395432,1725637849706,-529.8,0.00019726,2]
[337395433,1725637849716,-166.70939272,0.00019726,2]
[337395434,1725637849727,-500.0,0.00019726,2]
[337395435,1725637849737,-500.0,0.00019726,2]
[337395436,1725637849747,-500.0,0.00019726,2]
[337395437,1725637849757,-678.25,0.00019726,2]
[337395438,1725637849768,-500.0,0.00019726,2]
[337395439,1725637849778,-500.0,0.00019726,2]
[337395440,1725637849787,-485.54789274,0.00019726,2]
[337395441,1725637849798,-500.0,0.00019726,2]
[337395442,1725637849808,-500.0,0.00019726,2]
[337395443,1725637849818,-525.41,0.00019726,2]
[337395444,1725637849828,-500.0,0.00019726,2]
[337395445,1725637849839,-500.0,0.00019726,2]
[337395446,1725637849850,-1379.51,0.00019726,2]
[337395447,1725637849860,-500.0,0.00019726,2]
[337395448,1725637849870,-1407.13,0.00019726,2]
[337395449,1725637849881,-500.0,0.00019726,2]
[337395450,1725637849892,-500.0,0.00019726,2]
[337395451,1725637849902,-500.0,0.00019726,2]
[337395452,1725637849912,-500.0,0.00019726,2]
[337395453,1725637849923,-500.0,0.00019726,2]
[337395454,1725637849933,-571.74013912,0.00019726,2]
[337395455,1725637849945,-500.0,0.00019726,2]
[337395456,1725637849957,-641.83,0.00019726,2]
[337395457,1725637849967,-500.0,0.00019726,2]
[337395458,1725637849977,-500.0,0.00019726,2]
[337395459,1725637849987,-1061.22,0.00019726,2]
[337395460,1725637849997,-500.0,0.00019726,2]
[337395461,1725637850007,-558.74,0.00019726,2]
[337395462,1725637850017,-1115.03,0.00019726,2]
[337395463,1725637850027,-500.0,0.00019726,2]
[337395464,1725637850038,-500.0,0.00019726,2]
[337395465,1725637850050,-1902.32,0.00019726,2]
[337395466,1725637850060,-500.0,0.00019726,2]
[337395467,1725637850070,-500.0,0.00019726,2]
[337395468,1725637850081,-698.45,0.00019726,2]
[337395469,1725637850091,-500.0,0.00019726,2]
[337395470,1725637850100,-568.78,0.00019726,2]
[337395471,1725637850110,-500.0,0.00019726,2]
[337395472,1725637850121,-500.0,0.00019726,2]
[337395473,1725637850130,-500.0,0.00019726,2]
[337395474,1725637850140,-500.0,0.00019726,2]
[337395475,1725637850150,-500.0,0.00019726,2]
[337395476,1725637850160,-500.0,0.00019726,2]
[337395477,1725637850169,-1076.01,0.00019726,2]
[337395478,1725637850178,-209.07734852,0.00019726,2]
[337395479,1725637850188,-592.42,0.00019726,2]
[337395480,1725637850200,-672.85,0.00019726,2]
[337395481,1725637850209,-500.0,0.00019726,2]
[337395482,1725637850219,-1356.83,0.00019726,2]
[337395483,1725637850229,-500.0,0.00019726,2]
[337395484,1725637850238,-500.0,0.00019726,2]
[337395485,1725637850248,-500.0,0.00019726,2]
[337395486,1725637850258,-500.0,0.00019726,2]
[337395487,1725637850267,-2699.8,0.00019726,2]
[337395488,1725637850277,-1437.73,0.00019726,2]
[337395489,1725637850286,-531.35,0.00019726,2]
[337395490,1725637850296,-500.0,0.00019726,2]
[337395491,1725637850306,-500.0,0.00019726,2]
[337395492,1725637850316,-1040.53,0.00019726,2]
[337395493,1725637850326,-500.0,0.00019726,2]
[337395494,1725637850335,-4531.3,0.00019726,2]
[337395495,1725637850345,-500.0,0.00019726,2]
[337395496,1725637850358,-500.0,0.00019726,2]
[337395497,1725637850368,-1058.47,0.00019726,2]
[337395498,1725637850377,-500.0,0.00019726,2]
[337395499,1725637850386,-500.0,0.00019726,2]
[337395500,1725637850398,-500.0,0.00019726,2]
[337395501,1725637850408,-30732.9,0.00019726,2]
[337395502,1725637850417,-561.59,0.00019726,2]
[337395503,1725637850427,-500.0,0.00019726,2]
[337395504,1725637850438,-500.0,0.00019726,2]
[337395505,1725637850453,-500.0,0.00019726,2]
[337395506,1725637850465,-603.08,0.00019726,2]
[337395507,1725637850474,-588.17,0.00019726,2]
[337395508,1725637850483,-939.45,0.00019726,2]
[337395509,1725637850494,-500.0,0.00019726,2]
[337395510,1725637850504,-500.0,0.00019726,2]
[337395511,1725637850513,-504.15,0.00019726,2]
[337395512,1725637850524,-500.0,0.00019726,2]
[337395513,1725637850533,-500.0,0.00019726,2]
[337395514,1725637850543,-752.49,0.00019726,2]
[337395515,1725637850553,-500.0,0.00019726,2]
[337395516,1725637850563,-500.0,0.00019726,2]
[337395517,1725637850573,-500.0,0.00019726,2]
[337395518,1725637850584,-603.27,0.00019726,2]
[337395519,1725637850594,-899.58,0.00019726,2]
[337395520,1725637850604,-500.0,0.00019726,2]
[337395521,1725637850614,-539.66,0.00019726,2]
[337395522,1725637850623,-500.0,0.00019726,2]
[337395523,1725637850632,-500.0,0.00019726,2]
[337395524,1725637850642,-500.0,0.00019726,2]
[337395525,1725637850652,-500.0,0.00019726,2]
[337395526,1725637850663,-500.0,0.00019726,2]
[337395527,1725637850672,-22297.85,0.00019726,2]
[337395528,1725637850682,-907.04,0.00019726,2]
[337395529,1725637850692,-698.46,0.00019726,2]
[337395530,1725637850706,-555.76202489,0.00019726,2]
[337395531,1725637850716,-500.0,0.00019726,2]
[337395532,1725637850725,-568.46,0.00019726,2]
[337395533,1725637850735,-500.0,0.00019726,2]
[337395534,1725637850745,-506.18,0.00019726,2]
[337395535,1725637850754,-500.0,0.00019726,2]
[337395536,1725637850764,-500.0,0.00019726,2]
[337395537,1725637850774,-779.9,0.00019726,2]
[337395538,1725637850784,-874.99,0.00019726,2]
[337395539,1725637850794,-500.0,0.00019726,2]
[337395540,1725637850804,-500.0,0.00019726,2]
[337395541,1725637850813,-500.0,0.00019726,2]
[337395542,1725637850823,-500.0,0.00019726,2]
[337395543,1725637850832,-500.0,0.00019726,2]
[337395544,1725637850843,-500.0,0.00019726,2]
[337395545,1725637850853,-500.0,0.00019726,2]
[337395546,1725637850863,-627.07,0.00019726,2]
[337395547,1725637850872,-500.0,0.00019773,2]
[337395548,1725637850882,-420.0,0.00019787,2]
[337395549,1725637850893,-420.0,0.00019951,2]
[337395550,1725637850903,-338.38,0.0002,2]
[337395551,1725637850913,-500.0,0.0002,2]
[337395552,1725637850923,-500.0,0.0002,2]
[337395553,1725637850933,-500.0,0.0002,2]
[337395554,1725637850943,-500.0,0.0002,2]
[337395555,1725637850954,-500.0,0.0002,2]
[337395556,1725637850964,-500.0,0.0002,2]
[337395557,1725637850974,-316.78,0.0002,2]
[337395558,1725637850983,-500.0,0.0002,2]
[337395559,1725637850993,-500.0,0.0002,2]
[337395560,1725637851002,-500.0,0.0002,2]
[337395561,1725637851012,-500.0,0.0002,2]
[337395562,1725637851022,-500.0,0.0002,2]
[337395563,1725637851031,-500.0,0.0002,2]
[337395564,1725637851041,-405.08675021,0.0002,2]
[337395565,1725637851051,-500.0,0.0002,2]
[337395566,1725637851060,-836.85,0.0002,2]
[337395567,1725637851069,-500.0,0.0002,2]
[337395568,1725637851079,-500.0,0.0002,2]
[337395569,1725637851089,-500.0,0.0002,2]
[337395570,1725637851098,-500.0,0.0002,2]
[337395571,1725637851108,-500.0,0.0002,2]
[337395572,1725637851117,-500.0,0.0002,2]
[337395573,1725637851127,-500.0,0.0002,2]
[337395574,1725637851136,-535.98,0.0002,2]
[337395575,1725637851145,-215.84,0.0002,2]
[337395576,1725637851155,-500.0,0.0002,2]
[337395577,1725637851165,-584.42,0.0002,2]
[337395578,1725637851174,-500.0,0.0002,2]
[337395579,1725637851184,-544.36,0.0002,2]
[337395580,1725637851194,-500.0,0.0002,2]
[337395581,1725637851207,-500.0,0.0002,2]
[337395582,1725637851216,-500.0,0.0002,2]
[337395583,1725637851226,-552.05,0.0002,2]
[337395584,1725637851235,-500.0,0.0002,2]
[337395585,1725637851245,-500.0,0.0002,2]
[337395586,1725637851254,-500.0,0.0002,2]
[337395587,1725637851264,-500.0,0.0002,2]
[337395588,1725637851274,-500.0,0.0002,2]
[337395589,1725637851283,-504.32,0.0002,2]
[337395590,1725637851293,-938.12,0.0002,2]
[337395591,1725637851303,-500.0,0.0002,2]
[337395592,1725637851312,-500.0,0.0002,2]
[337395593,1725637851323,-673.95,0.0002,2]
[337395594,1725637851334,-500.0,0.0002,2]
[337395595,1725637851350,-500.0,0.0002,2]
[337395596,1725637851361,-500.0,0.0002,2]
[337395597,1725637851371,-500.0,0.0002,2]
[337395598,1725637851380,-683.27,0.0002,2]
[337395599,1725637851390,-825.03,0.0002,2]
[337395600,1725637851400,-500.0,0.0002,2]
[337395601,1725637851409,-500.0,0.0002,2]
[337395602,1725637851418,-500.0,0.0002,2]
[337395603,1725637851430,-500.0,0.0002,2]
[337395604,1725637851439,-500.0,0.0002,2]
[337395605,1725637851451,-513.25198422,0.0002,2]
[337395606,1725637851460,-500.0,0.0002,2]
[337395607,1725637851469,-500.0,0.0002,2]
[337395608,1725637851478,-500.0,0.0002,2]
[337395609,1725637851487,-500.0,0.0002,2]
[337395610,1725637851497,-500.0,0.0002,2]
[337395611,1725637851506,-500.0,0.0002,2]
[337395612,1725637851515,-500.0,0.0002,2]
[337395613,1725637851526,-738.46,0.0002,2]
[337395614,1725637851537,-500.0,0.0002,2]
[337395615,1725637851547,-27892.12,0.0002,2]
[337395616,1725637851559,-500.0,0.0002,2]
[337395617,1725637851569,-561.56,0.0002,2]
[337395618,1725637851579,-500.0,0.0002,2]
[337395619,1725637851589,-3589.64,0.0002,2]
[337395620,1725637851599,-500.0,0.0002,2]
[337395621,1725637851608,-500.0,0.0002,2]
[337395622,1725637851618,-500.0,0.0002,2]
[337395623,1725637851628,-12189.28,0.0002,2]
[337395624,1725637851638,-500.0,0.0002,2]
[337395625,1725637851648,-500.0,0.0002,2]
[337395626,1725637851658,-500.0,0.0002,2]
[337395627,1725637851668,-866.56,0.0002,2]
[337395628,1725637851678,-500.0,0.0002,2]
[337395629,1725637851688,-500.0,0.0002,2]
[337395630,1725637851700,-500.0,0.0002,2]
[337395631,1725637851709,-551.9,0.0002,2]
[337395632,1725637851720,-500.0,0.0002,2]
[337395633,1725637851730,-1019.03,0.0002,2]
[337395634,1725637851739,-500.0,0.0002,2]
[337395635,1725637851751,-848.14,0.0002,2]
[337395636,1725637851761,-500.0,0.0002,2]
[337395637,1725637851771,-878.37,0.0002,2]
[337395638,1725637851780,-1588.89,0.0002,2]
[337395639,1725637851789,-1086.26,0.0002,2]
[337395640,1725637851799,-500.0,0.0002,2]
[337395641,1725637851808,-500.0,0.0002,2]
[337395642,1725637851818,-500.0,0.0002,2]
[337395643,1725637851829,-500.0,0.0002,2]
[337395644,1725637851840,-529.8,0.0002,2]
[337395645,1725637851851,-503.71916604,0.0002,2]
[337395646,1725637851861,-509.23081384,0.0002,2]
[337395647,1725637851871,-678.25,0.0002,2]
[337395648,1725637851881,-500.0,0.0002,2]
[337395649,1725637851891,-500.0,0.0002,2]
[337395650,1725637851901,-187.03376602,0.0002,2]
[337395651,1725637851912,-500.0,0.0002,2]
[337395652,1725637851923,-525.41,0.0002,2]
[337395653,1725637851933,-500.0,0.0002,2]
[337395654,1725637851943,-1379.51,0.0002,2]
[337395655,1725637851956,-1407.13,0.0002,2]
[337395656,1725637851966,-500.0,0.0002,2]
[337395657,1725637851976,-500.0,0.0002,2]
[337395658,1725637851986,-500.0,0.0002,2]
[337395659,1725637851999,-500.0,0.0002,2]
[337395660,1725637852009,-641.83,0.0002,2]
[337395661,1725637852020,-157.16556744,0.0002,2]
[337395662,1725637852031,-500.0,0.0002,2]
[337395663,1725637852042,-1061.22,0.0002,2]
[337395664,1725637852053,-558.74,0.0002,2]
[337395665,1725637852063,-500.0,0.0002,2]
[337395666,1725637852073,-1115.03,0.0002,2]
[337395667,1725637852083,-349.27168623,0.0002,2]
[337395668,1725637852093,-500.0,0.0002,2]
[337395669,1725637852105,-1902.32,0.0002,2]
[337395670,1725637852116,-500.0,0.0002,2]
[337395671,1725637852126,-698.45,0.0002,2]
[337395672,1725637852137,-568.78,0.0002,2]
[337395673,1725637852149,-500.0,0.0002,2]
[337395674,1725637852161,-500.0,0.0002,2]
[337395675,1725637852171,-500.0,0.0002,2]
[337395676,1725637852181,-500.0,0.0002,2]
[337395677,1725637852191,-500.0,0.0002,2]
[337395678,1725637852203,-1076.01,0.0002,2]
[337395679,1725637852213,-500.0,0.0002,2]
[337395680,1725637852225,-592.42,0.0002,2]
[337395681,1725637852235,-672.85,0.0002,2]
[337395682,1725637852246,-500.0,0.0002,2]
[337395683,1725637852257,-1356.83,0.0002,2]
[337395684,1725637852268,-500.0,0.0002,2]
[337395685,1725637852278,-500.0,0.0002,2]
[337395686,1725637852288,-500.0,0.0002,2]
[337395687,1725637852298,-500.0,0.0002,2]
[337395688,1725637852309,-2699.8,0.0002,2]
[337395689,1725637852319,-1437.73,0.0002,2]
[337395690,1725637852332,-531.35,0.0002,2]
[337395691,1725637852343,-500.0,0.0002,2]
[337395692,1725637852357,-500.0,0.0002,2]
[337395693,1725637852368,-1040.53,0.0002,2]
[337395694,1725637852377,-500.0,0.0002,2]
[337395695,1725637852387,-4531.3,0.0002,2]
[337395696,1725637852398,-500.0,0.0002,2]
[337395697,1725637852408,-514.5965296,0.0002,2]
[337395698,1725637852418,-1058.47,0.0002,2]
[337395699,1725637852432,-238.0867747,0.0002,2]
[337395700,1725637852445,-500.0,0.0002,2]
[337395701,1725637852458,-500.0,0.0002,2]
[337395702,1725637852468,-30732.9,0.0002,2]
[337395703,1725637852479,-561.59,0.0002,2]
[337395704,1725637852488,-500.0,0.0002,2]
[337395705,1725637852497,-500.0,0.0002,2]
[337395706,1725637852507,-500.0,0.0002,2]
[337395707,1725637852519,-603.08,0.0002,2]
[337395708,1725637852529,-588.17,0.0002,2]
[337395709,1725637852540,-939.45,0.0002,2]
[337395710,1725637852550,-500.0,0.0002,2]
[337395711,1725637852560,-500.0,0.0002,2]
[337395712,1725637852570,-504.15,0.0002,2]
[337395713,1725637852579,-500.0,0.0002,2]
[337395714,1725637852589,-500.0,0.0002,2]
[337395715,1725637852599,-752.49,0.0002,2]
[337395716,1725637852609,-350.27003836,0.0002,2]
[337395717,1725637852618,-500.0,0.0002,2]
[337395718,1725637852630,-500.0,0.0002,2]
[337395719,1725637852643,-899.58,0.0002,2]
[337395720,1725637852652,-539.66,0.0002,2]
[337395721,1725637852665,-500.0,0.0002,2]
[337395722,1725637852677,-500.0,0.0002,2]
[337395723,1725637852688,-298.14710498,0.0002,2]
[337395724,1725637852701,-500.0,0.0002,2]
[337395725,1725637852711,-500.0,0.0002,2]
[337395726,1725637852721,-22297.85,0.0002,2]
[337395727,1725637852733,-907.04,0.0002,2]
[337395728,1725637852744,-698.46,0.0002,2]
[337395729,1725637852761,-500.0,0.0002,2]
[337395730,1725637852771,-568.46,0.0002,2]
[337395731,1725637852781,-500.0,0.0002,2]
[337395732,1725637852792,-506.18,0.0002,2]
[337395733,1725637852806,-500.0,0.0002,2]
[337395734,1725637852817,-500.0,0.0002,2]
[337395735,1725637852827,-779.9,0.0002,2]
[337395736,1725637852846,-874.99,0.0002,2]
[337395737,1725637852856,-500.0,0.0002,2]
[337395738,1725637852865,-349.30392841,0.0002,2]
[337395739,1725637852875,-500.0,0.0002,2]
[337395740,1725637852885,-500.0,0.0002,2]
[337395741,1725637852895,-500.0,0.0002,2]
[337395742,1725637852905,-500.0,0.0002,2]
[337395743,1725637852914,-627.07,0.0002,2]
[337395744,1725637852924,-1000.0,0.00020021,2]
[337395745,1725637852934,-150.0,0.00020104,2]
[337395746,1725637852944,-523.0,0.00020104,2]
[337395747,1725637852955,-189.0,0.00020214,2]
[337395748,1725637852966,-503.1,0.00020273,2]
[337395749,1725637852975,-500.0,0.00020273,2]
[337395750,1725637852985,-500.0,0.00020273,2]
[337395751,1725637852995,-308.92,0.00020273,2]
[337395752,1725637853004,-207.98,0.00020273,2]
[337395753,1725637853014,-500.0,0.00020273,2]
[337395754,1725637853023,-500.0,0.00020273,2]
[337395755,1725637853033,-500.0,0.00020273,2]
[337395756,1725637853043,-500.0,0.00020273,2]
[337395757,1725637853052,-500.0,0.00020273,2]
[337395758,1725637853062,-544.88,0.00020273,2]
[337395759,1725637853072,-500.0,0.00020273,2]
[337395760,1725637853081,-836.85,0.00020273,2]
[337395761,1725637853091,-500.0,0.00020273,2]
[337395762,1725637853101,-500.0,0.00020273,2]
[337395763,1725637853111,-500.0,0.00020273,2]
[337395764,1725637853121,-500.0,0.00020273,2]
[337395765,1725637853132,-500.0,0.00020273,2]
[337395766,1725637853142,-434.44,0.00020273,2]
[337395767,1725637853154,-500.0,0.00020273,2]
[337395768,1725637853163,-535.98,0.00020273,2]
[337395769,1725637853173,-185.54,0.00020273,2]
[337395770,1725637853182,-500.0,0.00020273,2]
[337395771,1725637853192,-500.0,0.00020273,2]
[337395772,1725637853206,-500.0,0.00020273,2]
[337395773,1725637853216,-552.05,0.00020273,2]
[337395774,1725637853226,-500.0,0.00020273,2]
[337395775,1725637853235,-500.0,0.00020273,2]
[337395776,1725637853244,-253.36,0.00020273,2]
[337395777,1725637853256,-500.0,0.00020273,2]
[337395778,1725637853266,-500.0,0.00020273,2]
[337395779,1725637853276,-504.32,0.00020273,2]
[337395780,1725637853286,-938.12,0.00020273,2]
[337395781,1725637853295,-500.0,0.00020273,2]
[337395782,1725637853307,-500.0,0.00020273,2]
[337395783,1725637853319,-673.95,0.00020273,2]
[337395784,1725637853331,-565.66371334,0.00020273,2]
[337395785,1725637853342,-500.0,0.00020273,2]
[337395786,1725637853357,-683.27,0.00020273,2]
[337395787,1725637853367,-825.03,0.00020273,2]
[337395788,1725637853378,-500.0,0.00020273,2]
[337395789,1725637853387,-500.0,0.00020273,2]
[337395790,1725637853400,-500.0,0.00020273,2]
[337395791,1725637853411,-500.0,0.00020273,2]
[337395792,1725637853423,-500.0,0.00020273,2]
[337395793,1725637853436,-500.0,0.00020273,2]
[337395794,1725637853447,-738.46,0.00020273,2]
[337395795,1725637853460,-500.0,0.00020273,2]
[337395796,1725637853472,-27892.12,0.00020273,2]
[337395797,1725637853481,-500.0,0.00020273,2]
[337395798,1725637853491,-561.56,0.00020273,2]
[337395799,1725637853502,-500.0,0.00020273,2]
[337395800,1725637853515,-3589.64,0.00020273,2]
[337395801,1725637853526,-500.0,0.00020273,2]
[337395802,1725637853537,-500.0,0.00020273,2]
[337395803,1725637853548,-500.0,0.00020273,2]
[337395804,1725637853559,-12189.28,0.00020273,2]
[337395805,1725637853570,-500.0,0.00020273,2]
[337395806,1725637853580,-500.0,0.00020273,2]
[337395807,1725637853594,-500.0,0.00020273,2]
[337395808,1725637853606,-866.56,0.00020273,2]
[337395809,1725637853617,-500.0,0.00020273,2]
[337395810,1725637853629,-551.9,0.00020273,2]
[337395811,1725637853640,-500.0,0.00020273,2]
[337395812,1725637853651,-1019.03,0.00020273,2]
[337395813,1725637853662,-500.0,0.00020273,2]
[337395814,1725637853672,-848.14,0.00020273,2]
[337395815,1725637853681,-878.37,0.00020273,2]
[337395816,1725637853691,-1588.89,0.00020273,2]
[337395817,1725637853702,-1086.26,0.00020273,2]
[337395818,1725637853712,-500.0,0.00020273,2]
[337395819,1725637853725,-500.0,0.00020273,2]
[337395820,1725637853736,-529.8,0.00020273,2]
[337395821,1725637853746,-500.0,0.00020273,2]
[337395822,1725637853758,-678.25,0.00020273,2]
[337395823,1725637853767,-500.0,0.00020273,2]
[337395824,1725637853778,-525.41,0.00020273,2]
[337395825,1725637853787,-500.0,0.00020273,2]
[337395826,1725637853797,-1379.51,0.00020273,2]
[337395827,1725637853809,-1407.13,0.00020273,2]
[337395828,1725637853820,-500.0,0.00020273,2]
[337395829,1725637853830,-500.0,0.00020273,2]
[337395830,1725637853843,-500.0,0.00020273,2]
[337395831,1725637853852,-555.72810254,0.00020273,2]
[337395832,1725637853863,-641.83,0.00020273,2]
[337395833,1725637853874,-500.0,0.00020273,2]
[337395834,1725637853884,-1061.22,0.00020273,2]
[337395835,1725637853894,-558.74,0.00020273,2]
[337395836,1725637853904,-160.53642874,0.00020273,2]
[337395837,1725637853916,-1115.03,0.00020273,2]
[337395838,1725637853926,-1902.32,0.00020273,2]